bitfinex/quotes_SOLUSD_20230905
["timestamp","ask_amount","ask_price","bid_price","bid_amount"]
[1693937745189,63.16699999,20.347,20.332,27.672]
[1693937746887,63.16699999,20.347,20.331,24.53532786]
[1693937746888,63.16699999,20.347,20.331,32.20732786]
[1693937747090,63.16699999,20.347,20.331,24.53532786]
[1693937747292,97.5552,20.346,20.33,36.913]
[1693937747478,62.668,20.345,20.33,29.24]
[1693937747678,0.49999999,20.344,20.33,29.24]
[1693937747890,7.668,20.343,20.33,29.24]
[1693937748092,55.49999999,20.342,20.33,29.24]
[1693937748884,55.49999999,20.342,20.33,36.913]
[1693937749085,55.0,20.342,20.33,36.913]
[1693937749279,55.0,20.342,20.33,61.44832786]
[1693937749782,0.49999999,20.341,20.33,61.44832786]
[1693937750087,0.49999999,20.342,20.33,61.44832786]
[1693937751982,0.49999999,20.342,20.331,24.53532786]
[1693937752286,38.445942,20.344,20.332,7.672]
[1693937752488,0.49999999,20.343,20.332,7.672]
[1693937752687,7.667,20.347,20.332,7.672]
[1693937752688,0.49999999,20.346,20.332,7.672]
[1693937753692,25.26499999,20.346,20.332,7.672]
[1693937753998,0.49999999,20.344,20.332,7.672]
[1693937763705,0.49999999,20.344,20.33,36.913]
[1693937766712,0.49999999,20.344,20.331,55.0]
[1693937767010,0.49999999,20.351,20.334,86.549]
[1693937767209,0.49999999,20.352,20.34,36.909]
[1693937768204,0.49999999,20.352,20.34,61.44432786]
[1693937768524,79.535328,20.356,20.34,61.44432786]
[1693937768702,0.49999999,20.355,20.34,61.44432786]
[1693937770201,55.49999999,20.355,20.34,61.44432786]
[1693937773019,55.49999999,20.355,20.34,36.909]
[1693937777030,0.49999999,20.355,20.34,36.909]
[1693937777328,0.49999999,20.355,20.341,55.0]
[1693937778327,0.49999999,20.355,20.34,29.24]
[1693937778530,55.49999999,20.355,20.341,7.668]
[1693937779518,7.664,20.353,20.34,29.24]
[1693937779718,55.49999999,20.352,20.34,29.24]
[1693937780017,0.49999999,20.35,20.34,29.24]
[1693937780219,55.49999999,20.35,20.34,29.24]
[1693937780420,63.16599999,20.35,20.34,29.24]
[1693937781817,55.49999999,20.35,20.34,29.24]
[1693937782017,0.49999999,20.35,20.34,29.24]
[1693937782931,0.49999999,20.35,20.34,36.909]
[1693937783232,0.49999999,20.353,20.34,29.24]
[1693937783420,8.16399999,20.353,20.34,29.24]
[1693937784136,55.0,20.352,20.34,29.24]
[1693937784440,0.49999999,20.351,20.34,29.24]
[1693937786935,0.49999999,20.352,20.34,36.909]
[1693937789029,0.49999999,20.352,20.34,61.44432786]
[1693937790044,0.49999999,20.353,20.34,61.44432786]
[1693937795948,0.49999999,20.353,20.34,36.909]
[1693937797652,0.49999999,20.353,20.34,29.24]
[1693937798559,8.16399999,20.353,20.34,29.24]
[1693937798846,0.49999999,20.351,20.34,29.24]
[1693937802246,8.16499999,20.351,20.34,29.24]
[1693937802446,55.0,20.35,20.34,29.24]
[1693937802636,0.49999999,20.349,20.34,29.24]
[1693937804048,38.94594099,20.349,20.34,29.24]
[1693937804252,55.0,20.348,20.34,29.24]
[1693937804555,0.49999999,20.347,20.34,29.24]
[1693937810948,7.667,20.346,20.34,29.24]
[1693937811144,0.49999999,20.345,20.34,29.24]
[1693937811345,0.49999999,20.347,20.333,7.671]
[1693937811543,0.49999999,20.347,20.34,29.24]
[1693937819855,0.49999999,20.352,20.34,36.909]
[1693937820057,55.49999999,20.352,20.34,36.909]
[1693937820369,55.49999999,20.352,20.34,29.24]
[1693937820559,0.49999999,20.352,20.34,29.24]
[1693937820858,29.73999999,20.352,20.34,29.24]
[1693937821071,55.0,20.351,20.34,29.24]
[1693937821369,0.49999999,20.35,20.34,29.24]
[1693937825275,0.49999999,20.35,20.341,7.669]
[1693937825567,7.663,20.355,20.341,7.669]
[1693937825767,0.49999999,20.354,20.341,7.669]
[1693937826161,8.16399999,20.354,20.34,29.24]
[1693937828272,55.0,20.353,20.34,29.24]
[1693937828455,0.49999999,20.352,20.34,29.24]
[1693937835476,0.49999999,20.353,20.34,29.24]
[1693937838382,0.49999999,20.353,20.341,7.669]
[1693937843379,0.49999999,20.358,20.342,75.0]
[1693937843590,7.661,20.363,20.346,7.667]
[1693937843770,29.24,20.359,20.346,7.667]
[1693937843965,0.49999999,20.358,20.346,7.667]
[1693937844680,55.49999999,20.358,20.346,7.667]
[1693937845066,0.49999999,20.364,20.35,36.905]
[1693937846788,55.49999999,20.364,20.35,36.905]
[1693937857591,63.15999999,20.364,20.35,29.24]
[1693937864085,55.49999999,20.364,20.35,29.24]
[1693937870001,55.49999999,20.364,20.35,36.905]
[1693937870883,109.56599999,20.364,20.35,36.905]
[1693937872489,54.56599999,20.364,20.35,36.905]
[1693937872691,0.49999999,20.367,20.35,36.905]
[1693937873196,0.49999999,20.367,20.351,55.0]
[1693937873508,0.49999999,20.367,20.354,7.663]
[1693937876709,0.49999999,20.368,20.36,29.24]
[1693937876883,0.49999999,20.368,20.362,7.661]
[1693937877187,0.49999999,20.368,20.363,55.0]
[1693937877387,0.0966847,20.371,20.365,7.66]
[1693937877596,0.0966847,20.371,20.367,8.15899999]
[1693937877794,0.0966847,20.371,20.369,7.658]
[1693937878183,1.0966847,20.383,20.369,7.658]
[1693937878387,1.0966847,20.385,20.373,7.656]
[1693937879302,1.0966847,20.385,20.38,29.24]
[1693937879606,1.0966847,20.394,20.38,29.24]
[1693937879784,1.0966847,20.396,20.38,36.894]
[1693937879986,1.0966847,20.399,20.38,36.894]
[1693937880189,1.0966847,20.395,20.38,29.24]
[1693937880394,7.65,20.392,20.38,29.24]
[1693937880701,7.65,20.392,20.374,7.656]
[1693937880996,7.651,20.389,20.375,20.0]
[1693937881204,1.0966847,20.388,20.375,20.0]
[1693937881396,8.7476847,20.388,20.373,20.0]
[1693937881998,55.0,20.387,20.373,20.0]
[1693937882302,1.0966847,20.386,20.374,7.656]
[1693937882498,1.0966847,20.388,20.38,29.24]
[1693937882705,1.0966847,20.389,20.38,29.24]
[1693937882892,1.0966847,20.389,20.374,7.656]
[1693937883095,1.0966847,20.389,20.375,20.0]
[1693937883294,1.0966847,20.389,20.373,20.0]
[1693937883793,56.0966847,20.389,20.372,0.49999999]
[1693937884105,56.0966847,20.389,20.376,7.655]
[1693937884816,1.0966847,20.387,20.376,7.655]
[1693937885106,1.0966847,20.389,20.376,7.655]
[1693937887506,1.0966847,20.389,20.38,29.25]
[1693937887709,1.0966847,20.39,20.382,7.653]
[1693937888200,1.0966847,20.393,20.383,55.0]
[1693937888403,1.0966847,20.399,20.385,7.652]
[1693937889103,41.2224217,20.399,20.385,7.652]
[1693937889593,1.0966847,20.397,20.385,7.652]
[1693937889795,1.0966847,20.398,20.385,7.652]
[1693937890398,1.0966847,20.4,20.385,7.652]
[1693937891307,7.646,20.403,20.389,7.65]
[1693937891609,2.0966847,20.401,20.389,7.65]
[1693937892305,62.645,20.404,20.389,7.65]
[1693937892306,2.0966847,20.403,20.389,7.65]
[1693937893816,9.7426847,20.403,20.389,7.65]
[1693937895413,9.7426847,20.401,20.387,7.651]
[1693937895719,24.702,20.404,20.387,7.651]
[1693937895720,2.0966847,20.399,20.387,7.651]
[1693937896399,2.0966847,20.399,20.385,7.652]
[1693937896816,2.0966847,20.399,20.386,55.0]
[1693937897113,2.0966847,20.399,20.387,7.651]
[1693937902723,9.7436847,20.399,20.385,7.652]
[1693937903320,2.0966847,20.399,20.385,7.652]
[1693937904518,2.0966847,20.399,20.386,55.0]
[1693937904826,2.0966847,20.399,20.387,7.651]
[1693937908011,2.0966847,20.399,20.39,29.22]
[1693937909807,2.0966847,20.402,20.39,29.22]
[1693937910224,9.7426847,20.402,20.39,29.22]
[1693937911229,55.0,20.401,20.39,29.22]
[1693937911422,2.0966847,20.4,20.39,29.22]
[1693937912522,2.0966847,20.401,20.39,29.22]
[1693937912722,57.0966847,20.401,20.39,29.22]
[1693937914730,57.0966847,20.401,20.39,36.87]
[1693937916033,2.0966847,20.401,20.39,36.87]
[1693937916227,2.0966847,20.402,20.39,36.87]
[1693937916627,2.0966847,20.403,20.39,36.87]
[1693937918026,57.0966847,20.403,20.39,36.87]
[1693937918434,2.0966847,20.403,20.39,36.87]
[1693937918632,57.0966847,20.403,20.39,36.87]
[1693937919037,2.0966847,20.403,20.39,36.87]
[1693937919241,2.0966847,20.405,20.39,36.87]
[1693937919448,2.0966847,20.405,20.391,55.0]
[1693937919634,2.0966847,20.405,20.393,7.649]
[1693937920239,2.0966847,20.405,20.391,55.0]
[1693937920537,9.7416847,20.405,20.391,62.65]
[1693937921329,2.0966847,20.407,20.391,62.65]
[1693937921745,9.7406847,20.407,20.391,62.65]
[1693937928753,55.0,20.406,20.391,55.0]
[1693937929052,2.0966847,20.402,20.391,55.0]
[1693937930052,2.0966847,20.404,20.391,55.0]
[1693937932149,2.0966847,20.404,20.391,62.65]
[1693937932855,9.7416847,20.404,20.39,58.42]
[1693937933741,9.7416847,20.404,20.39,66.07]
[1693937933936,9.7416847,20.404,20.39,36.85]
[1693937934254,9.7416847,20.404,20.391,55.0]
[1693937934855,9.7416847,20.404,20.39,29.2]
[1693937937353,9.7416847,20.404,20.391,55.0]
[1693937939049,9.7416847,20.404,20.39,29.2]
[1693937939239,55.0,20.403,20.39,29.2]
[1693937939445,7.647,20.4,20.39,29.2]
[1693937939661,2.0966847,20.399,20.39,29.2]
[1693937939956,7.647,20.398,20.39,29.2]
[1693937940256,9.7446847,20.397,20.383,24.53532786]
[1693937940554,2.0966847,20.401,20.39,29.2]
[1693937940753,7.647,20.399,20.39,29.2]
[1693937940954,2.0966847,20.398,20.39,29.2]
[1693937941156,64.7436847,20.398,20.383,24.53532786]
[1693937941344,64.7436847,20.398,20.384,20.0]
[1693937942352,64.7436847,20.398,20.382,20.0]
[1693937942546,64.7436847,20.398,20.381,20.0]
[1693937942746,64.7436847,20.398,20.381,44.53532786]
[1693937943655,57.0966847,20.398,20.382,7.653]
[1693937943855,2.0966847,20.398,20.384,7.652]
[1693937944055,2.0966847,20.398,20.385,20.0]
[1693937947254,9.7446847,20.398,20.385,20.0]
[1693937947558,2.0966847,20.396,20.382,27.653]
[1693937947761,57.0966847,20.396,20.382,27.653]
[1693937947943,57.0966847,20.396,20.382,20.0]
[1693937948359,57.0966847,20.396,20.382,27.653]
[1693937948546,57.0966847,20.396,20.382,52.18832786]
[1693937948750,55.0,20.395,20.382,52.18832786]
[1693937948956,2.0966847,20.397,20.382,52.18832786]
[1693937949157,2.0966847,20.397,20.384,7.652]
[1693937949358,2.0966847,20.397,20.385,20.0]
[1693937949951,2.0966847,20.397,20.385,27.652]
[1693937950152,2.0966847,20.398,20.385,27.652]
[1693937952754,9.7436847,20.398,20.385,20.0]
[1693937952954,55.0,20.397,20.384,20.0]
[1693937953154,2.0966847,20.396,20.382,27.653]
[1693937953360,2.0966847,20.396,20.383,0.49999999]
[1693937953559,2.0966847,20.396,20.384,7.652]
[1693937953759,2.0966847,20.397,20.385,20.0]
[1693937955162,2.0966847,20.397,20.385,27.652]
[1693937959884,2.0966847,20.397,20.385,20.0]
[1693937960172,9.7446847,20.397,20.385,20.0]
[1693937960474,55.0,20.396,20.384,20.0]
[1693937960670,2.0966847,20.395,20.384,20.0]
[1693937960873,2.0966847,20.397,20.384,20.0]
[1693937961574,2.0966847,20.397,20.384,27.652]
[1693937964271,2.0966847,20.398,20.384,27.652]
[1693937964772,9.7436847,20.398,20.384,27.652]
[1693937964970,55.0,20.397,20.384,27.652]
[1693937965279,2.0966847,20.396,20.384,27.652]
[1693937965481,2.0966847,20.396,20.384,20.0]
[1693937965667,2.0966847,20.396,20.383,20.0]
[1693937965979,2.0966847,20.396,20.383,27.653]
[1693937966766,2.0966847,20.397,20.383,27.653]
[1693937967167,2.0966847,20.398,20.383,27.653]
[1693937968973,2.0966847,20.398,20.383,52.18832786]
[1693937969176,2.0966847,20.399,20.383,52.18832786]
[1693937971779,2.0966847,20.399,20.383,27.653]
[1693937971986,2.0966847,20.399,20.384,79.53532786]
[1693937972277,2.0966847,20.399,20.388,7.651]
[1693937974076,2.0966847,20.399,20.39,29.2]
[1693937974279,2.0966847,20.4,20.39,36.85]
[1693937974574,2.0966847,20.402,20.39,36.85]
[1693937975383,36.85,20.405,20.39,36.85]
[1693937975581,2.0966847,20.404,20.39,36.85]
[1693937976283,57.0966847,20.404,20.39,36.85]
[1693937981788,57.0966847,20.404,20.39,29.2]
[1693937982089,2.0966847,20.402,20.387,7.651]
[1693937982407,64.7426847,20.402,20.387,7.651]
[1693937982593,64.7426847,20.402,20.385,20.0]
[1693937982780,64.7426847,20.402,20.385,27.652]
[1693937984396,7.648,20.396,20.385,20.0]
[1693937984579,7.648,20.396,20.382,20.0]
[1693937984580,2.0966847,20.395,20.382,20.0]
[1693937985293,24.704,20.401,20.383,7.653]
[1693937985294,2.0966847,20.399,20.383,7.653]
[1693937985680,2.0966847,20.399,20.384,20.0]
[1693937985882,2.0966847,20.399,20.386,7.652]
[1693937986788,2.0966847,20.4,20.386,7.652]
[1693937987191,9.7436847,20.4,20.384,27.652]
[1693937988182,55.0,20.399,20.384,27.652]
[1693937988387,2.0966847,20.398,20.384,27.652]
[1693937991987,2.0966847,20.398,20.384,52.18732786]
[1693937992402,2.0966847,20.399,20.384,52.18732786]
[1693937992894,2.0966847,20.399,20.385,55.0]
[1693937993104,2.0966847,20.399,20.387,7.651]
[1693937995592,2.0966847,20.399,20.385,7.652]
[1693938001504,2.0966847,20.399,20.385,32.18732786]
[1693938002604,57.0966847,20.4,20.385,32.18732786]
[1693938014710,57.0966847,20.4,20.386,24.53532786]
[1693938014902,57.0966847,20.4,20.388,7.651]
[1693938023812,2.0966847,20.4,20.39,29.2]
[1693938024222,2.0966847,20.401,20.39,29.2]
[1693938024619,2.0966847,20.401,20.39,36.85]
[1693938025525,57.0966847,20.401,20.39,36.85]
[1693938030628,57.0966847,20.401,20.39,29.2]
[1693938030925,2.0966847,20.401,20.39,29.2]
[1693938032734,2.0966847,20.401,20.39,36.85]
[1693938037418,2.0966847,20.401,20.39,29.2]
[1693938038633,2.0966847,20.402,20.39,29.2]
[1693938039018,9.7426847,20.402,20.39,29.2]
[1693938039219,2.0966847,20.4,20.39,29.2]
[1693938047131,2.0966847,20.401,20.39,29.2]
[1693938049039,2.0966847,20.401,20.39,36.85]
[1693938051340,2.0966847,20.401,20.39,29.2]
[1693938051648,2.0966847,20.402,20.39,29.2]
[1693938053151,2.0966847,20.402,20.389,7.65]
[1693938059948,2.0966847,20.403,20.39,29.2]
[1693938060148,2.0966847,20.403,20.391,7.65]
[1693938061849,2.0966847,20.404,20.391,7.65]
[1693938062153,2.0966847,20.404,20.39,29.2]
[1693938062154,7.645,20.403,20.39,29.2]
[1693938062353,2.0966847,20.402,20.39,29.2]
[1693938063757,2.0966847,20.404,20.39,36.85]
[1693938063960,57.0966847,20.404,20.39,36.85]
[1693938064748,2.0966847,20.404,20.39,36.85]
[1693938065256,57.0966847,20.406,20.39,36.85]
[1693938065558,93.9466847,20.406,20.39,36.85]
[1693938065959,38.9466847,20.406,20.395,32.359]
[1693938066545,2.0966847,20.406,20.395,32.359]
[1693938066757,2.0966847,20.406,20.395,7.648]
[1693938066962,2.0966847,20.407,20.395,7.648]
[1693938068156,57.0966847,20.407,20.395,7.648]
[1693938068746,2.0966847,20.407,20.395,7.648]
[1693938073259,7.644,20.406,20.39,29.2]
[1693938073463,57.0966847,20.405,20.39,29.2]
[1693938073661,7.645,20.404,20.39,29.2]
[1693938073858,2.0966847,20.403,20.39,36.85]
[1693938078546,2.0966847,20.404,20.39,36.85]
[1693938079168,2.0966847,20.404,20.391,55.0]
[1693938079463,2.0966847,20.404,20.391,62.65]
[1693938080562,2.0966847,20.407,20.391,87.366]
[1693938081155,9.7406847,20.407,20.391,62.65]
[1693938083460,2.0966847,20.407,20.4,29.2]
[1693938083767,2.0966847,20.412,20.402,7.646]
[1693938086361,2.0966847,20.415,20.402,7.646]
[1693938086562,57.0966847,20.415,20.402,7.646]
[1693938086762,2.0966847,20.415,20.402,7.646]
[1693938087659,2.0966847,20.415,20.403,55.0]
[1693938087867,2.0966847,20.416,20.403,55.0]
[1693938088066,9.7376847,20.416,20.4,36.846]
[1693938088377,9.7376847,20.416,20.401,55.0]
[1693938091967,2.0966847,20.416,20.401,62.646]
[1693938092466,64.7376847,20.416,20.401,62.646]
[1693938093270,57.0966847,20.416,20.401,62.646]
[1693938094584,2.0966847,20.416,20.401,62.646]
[1693938096477,2.0966847,20.417,20.401,62.646]
[1693938097287,2.0966847,20.417,20.41,29.2]
[1693938097585,398.3,20.424,20.41,29.2]
[1693938097586,2.0966847,20.423,20.41,36.843]
[1693938099783,2.0966847,20.423,20.41,29.2]
[1693938102496,2.0966847,20.421,20.41,29.2]
[1693938102990,9.7356847,20.421,20.41,29.2]
[1693938103187,2.0966847,20.421,20.41,29.2]
[1693938103488,2.0966847,20.424,20.41,29.2]
[1693938104090,2.0966847,20.424,20.41,36.843]
[1693938106180,64.7346847,20.424,20.41,29.2]
[1693938108175,64.7346847,20.424,20.404,7.645]
[1693938108485,64.7346847,20.424,20.405,20.0]
[1693938108685,64.7346847,20.424,20.405,27.645]
[1693938113898,95.8196,20.423,20.405,27.645]
[1693938114096,57.0966847,20.422,20.405,27.645]
[1693938119492,29.2,20.42,20.405,20.0]
[1693938119695,7.64,20.418,20.403,27.645]
[1693938119884,2.0966847,20.417,20.403,27.645]
[1693938120084,57.0966847,20.417,20.403,27.645]
[1693938120491,2.0966847,20.417,20.403,27.645]
[1693938120695,2.0966847,20.418,20.403,27.645]
[1693938120895,29.2,20.417,20.403,27.645]
[1693938121196,57.0966847,20.416,20.403,27.645]
[1693938122998,64.7376847,20.416,20.403,20.0]
[1693938123201,57.0966847,20.416,20.402,20.0]
[1693938123503,57.0966847,20.416,20.403,7.645]
[1693938123706,57.0966847,20.416,20.405,7.644]
[1693938126498,2.0966847,20.416,20.405,7.644]
[1693938127010,2.0966847,20.419,20.405,7.644]
[1693938127308,16.46758131,20.419,20.405,7.644]
[1693938127805,45.66758131,20.419,20.405,7.644]
[1693938128014,16.46758131,20.419,20.405,7.644]
[1693938128310,2.0966847,20.417,20.405,7.644]
[1693938134115,2.0966847,20.418,20.406,55.0]
[1693938134301,2.0966847,20.422,20.409,7.643]
[1693938134503,57.0966847,20.422,20.409,7.643]
[1693938137607,2.0966847,20.422,20.409,7.643]
[1693938137807,2.0966847,20.422,20.41,55.0]
[1693938137999,2.0966847,20.422,20.411,7.642]
[1693938138410,2.0966847,20.422,20.41,84.2]
[1693938138905,2.0966847,20.423,20.41,84.2]
[1693938139817,2.0966847,20.423,20.41,91.843]
[1693938140118,57.0966847,20.425,20.41,91.843]
[1693938144015,9.7336847,20.425,20.41,91.843]
[1693938144604,2.0966847,20.425,20.41,91.843]
[1693938144803,64.7336847,20.426,20.41,91.843]
[1693938145919,64.7336847,20.426,20.41,84.2]
[1693938146104,64.7336847,20.426,20.41,29.2]
[1693938146824,64.7336847,20.426,20.41,36.843]
[1693938155425,64.7336847,20.426,20.41,29.2]
[1693938157312,64.7336847,20.426,20.41,36.843]
[1693938159922,9.7336847,20.426,20.41,36.843]
[1693938160126,9.7336847,20.426,20.411,55.0]
[1693938168431,9.7336847,20.426,20.41,36.843]
[1693938168734,55.0,20.425,20.41,36.843]
[1693938168935,9.7346847,20.424,20.41,36.843]
[1693938169125,55.0,20.423,20.41,29.2]
[1693938169434,2.0966847,20.422,20.41,29.2]
[1693938172031,29.2,20.42,20.4,29.2]
[1693938172221,29.2,20.41,20.39,36.85]
[1693938172542,29.2,20.41,20.391,20.49999999]
[1693938172543,7.645,20.404,20.391,20.49999999]
[1693938172932,2.0966847,20.405,20.391,20.49999999]
[1693938173135,57.0966847,20.405,20.391,20.49999999]
[1693938173336,57.0966847,20.405,20.391,28.14999999]
[1693938173726,57.0966847,20.405,20.391,27.65]
[1693938174624,57.0966847,20.405,20.392,0.49999999]
[1693938175234,57.0966847,20.405,20.391,27.65]
[1693938175627,57.0966847,20.405,20.392,0.49999999]
[1693938176328,57.0966847,20.405,20.392,8.14899999]
[1693938176531,57.0966847,20.405,20.393,20.0]
[1693938178540,2.0966847,20.405,20.394,0.49999999]
[1693938178724,2.0966847,20.406,20.393,20.0]
[1693938179125,2.0966847,20.406,20.394,0.49999999]
[1693938179325,2.0966847,20.406,20.394,8.14899999]
[1693938179531,2.0966847,20.406,20.395,20.0]
[1693938180441,9.7416847,20.406,20.395,20.0]
[1693938180620,2.0966847,20.404,20.391,7.65]
[1693938180824,2.0966847,20.404,20.392,0.49999999]
[1693938181528,2.0966847,20.404,20.391,8.14999999]
[1693938181939,2.0966847,20.405,20.391,8.14999999]
[1693938185640,9.7416847,20.405,20.391,0.49999999]
[1693938185840,2.0966847,20.403,20.391,8.14999999]
[1693938186038,2.0966847,20.405,20.391,8.14999999]
[1693938188138,2.0966847,20.405,20.391,32.68532785]
[1693938188439,2.0966847,20.406,20.391,32.68532785]
[1693938189544,2.0966847,20.406,20.392,24.53532786]
[1693938189746,92.3099,20.408,20.392,24.53532786]
[1693938189747,2.0966847,20.407,20.396,7.648]
[1693938189949,2.0966847,20.407,20.4,29.2]
[1693938190144,107.44200269,20.418,20.402,7.646]
[1693938191646,136.64200269,20.418,20.402,7.646]
[1693938192059,55.0,20.417,20.402,7.646]
[1693938192239,2.0966847,20.416,20.402,7.646]
[1693938192934,2.0966847,20.417,20.403,0.49999999]
[1693938193148,29.2,20.42,20.407,7.644]
[1693938193149,2.0966847,20.419,20.407,7.644]
[1693938193852,2.0966847,20.419,20.406,0.49999999]
[1693938194748,2.0966847,20.419,20.405,7.645]
[1693938194949,2.0966847,20.419,20.406,0.49999999]
[1693938195251,57.0966847,20.419,20.406,0.49999999]
[1693938195559,7.64,20.418,20.403,0.49999999]
[1693938195850,57.0966847,20.417,20.401,20.49999999]
[1693938196241,37.0966847,20.417,20.403,7.645]
[1693938196455,51.6257647,20.42,20.404,20.0]
[1693938196657,51.6257647,20.42,20.405,10.24168469]
[1693938198766,55.0,20.419,20.405,10.24168469]
[1693938201178,62.64,20.419,20.405,10.24168469]
[1693938202784,62.64,20.419,20.405,2.59668469]
[1693938206486,62.64,20.419,20.39,29.2]
[1693938206487,7.642,20.412,20.393,7.649]
[1693938206671,53.882,20.415,20.395,10.24468469]
[1693938206672,29.2,20.41,20.395,10.24468469]
[1693938206873,55.0,20.409,20.395,10.24468469]
[1693938207887,62.643,20.409,20.395,10.24468469]
[1693938208675,55.0,20.409,20.395,10.24468469]
[1693938210374,62.643,20.409,20.395,10.24468469]
[1693938211485,55.0,20.409,20.395,10.24468469]
[1693938219293,55.0,20.41,20.395,10.24468469]
[1693938220087,91.843,20.41,20.395,10.24468469]
[1693938221197,91.843,20.41,20.394,2.59668469]
[1693938221495,91.843,20.41,20.394,22.59668469]
[1693938224295,91.843,20.41,20.394,30.24468469]
[1693938227990,84.2,20.41,20.394,30.24468469]
[1693938228286,96.3824,20.411,20.395,55.0]
[1693938228490,96.3824,20.411,20.4,29.2]
[1693938228692,96.3824,20.411,20.402,7.646]
[1693938228993,96.3824,20.411,20.403,2.59668469]
[1693938229201,7.641,20.416,20.403,2.59668469]
[1693938229492,91.6713,20.415,20.403,2.59668469]
[1693938229700,120.8713,20.415,20.402,7.646]
[1693938230401,55.0,20.414,20.402,7.646]
[1693938230989,55.0,20.414,20.403,2.59668469]
[1693938233898,29.2,20.415,20.403,2.59668469]
[1693938234104,98.3681,20.416,20.403,30.24168469]
[1693938234287,68.6687647,20.42,20.403,30.24168469]
[1693938234605,7.641,20.416,20.403,30.24168469]
[1693938240201,30.241684,20.419,20.403,30.24168469]
[1693938240389,55.0,20.418,20.403,30.24168469]
[1693938242708,62.64,20.418,20.403,30.24168469]
[1693938243592,62.14,20.418,20.403,22.59668469]
[1693938243804,62.14,20.418,20.404,20.0]
[1693938243990,62.14,20.418,20.402,2.59668469]
[1693938244193,62.14,20.418,20.402,57.59668469]
[1693938244392,62.14,20.418,20.403,20.0]
[1693938244597,62.14,20.418,20.404,2.59668469]
[1693938247613,62.14,20.418,20.403,2.59668469]
[1693938249209,62.14,20.418,20.403,10.24168469]
[1693938249412,62.14,20.418,20.405,10.24168469]
[1693938249596,62.14,20.418,20.405,7.645]
[1693938250004,62.14,20.418,20.403,10.24168469]
[1693938250206,62.14,20.418,20.405,2.59668469]
[1693938252110,12.81457757,20.417,20.405,2.59668469]
[1693938252306,86.217,20.414,20.391,2.59668469]
[1693938252505,29.2,20.41,20.391,2.59668469]
[1693938252808,7.645,20.405,20.391,2.59668469]
[1693938253003,7.645,20.405,20.384,2.59668469]
[1693938253191,7.647,20.398,20.384,10.24868469]
[1693938253798,7.647,20.398,20.385,20.0]
[1693938254007,7.647,20.398,20.386,2.59668469]
[1693938254407,55.0,20.397,20.386,2.59668469]
[1693938254710,7.649,20.394,20.384,2.59668469]
[1693938257409,7.649,20.394,20.382,57.59668469]
[1693938257613,7.649,20.394,20.383,20.0]
[1693938257811,7.649,20.394,20.384,2.59668469]
[1693938261815,7.649,20.394,20.383,2.59668469]
[1693938269821,7.651,20.389,20.372,2.59668469]
[1693938270020,62.649,20.393,20.377,7.655]
[1693938270321,62.649,20.393,20.378,2.59668469]
[1693938270532,62.649,20.393,20.38,7.654]
[1693938270712,92.7032,20.392,20.381,2.59668469]
[1693938272006,100.3532,20.392,20.381,2.59668469]
[1693938272209,100.3532,20.392,20.379,57.59668469]
[1693938272820,7.65,20.392,20.379,57.59668469]
[1693938273008,1.0,20.391,20.379,57.59668469]
[1693938273410,8.65,20.391,20.379,2.59668469]
[1693938273811,8.65,20.391,20.377,57.59668469]
[1693938274213,55.0,20.39,20.377,10.25168469]
[1693938274521,55.0,20.39,20.377,2.59668469]
[1693938274720,1.0,20.388,20.373,2.59668469]